lending/lending_fUSD_20250516
["ID","MTS","AMOUNT","RATE_DAILY","PERIOD"]
[361257054,1747398646210,-400.0,0.00016438,2]
[361257056,1747398646219,-400.0,0.00016438,2]
[361257057,1747398646230,-400.0,0.00016438,2]
[361257060,1747398646239,-448.27,0.00016438,2]
[361257061,1747398646249,-400.0,0.00016438,2]
[361257064,1747398646259,-400.0,0.00016438,2]
[361257066,1747398646269,-464.80015901,0.00016438,2]
[361257068,1747398646279,-286.03692546,0.00016438,2]
[361257070,1747398646288,-529.01775874,0.00016438,2]
[361257072,1747398646298,-400.0,0.00016438,2]
[361257074,1747398646307,-400.0,0.00016438,2]
[361257076,1747398646318,-400.0,0.00016438,2]
[361257078,1747398646327,-649.79,0.00016438,2]
[361257080,1747398646337,-400.0,0.00016438,2]
[361257082,1747398646346,-400.0,0.00016438,2]
[361257083,1747398646357,-400.0,0.00016438,2]
[361257085,1747398646367,-400.0,0.00016438,2]
[361257087,1747398646377,-400.0,0.00016438,2]
[361257089,1747398646388,-717.7,0.00016438,2]
[361257091,1747398646397,-400.0,0.00016438,2]
[361257093,1747398646406,-400.0,0.00016438,2]
[361257095,1747398646416,-400.0,0.00016438,2]
[361257097,1747398646425,-931.9,0.00016438,2]
[361257099,1747398646434,-400.0,0.00016438,2]
[361257101,1747398646444,-332.0845643,0.00016438,2]
[361257103,1747398646455,-400.0,0.00016438,2]
[361257105,1747398646466,-287.75431256,0.00016438,2]
[361257107,1747398646475,-206.17575349,0.00016438,2]
[361257109,1747398646484,-400.0,0.00016438,2]
[361257111,1747398646494,-400.0,0.00016438,2]
[361257113,1747398646504,-1164.64,0.00016438,2]
[361257115,1747398646513,-400.0,0.00016438,2]
[361257117,1747398646523,-425.1,0.00016438,2]
[361257119,1747398646533,-678.64,0.00016438,2]
[361257121,1747398646542,-400.0,0.00016438,2]
[361257123,1747398646551,-400.0,0.00016438,2]
[361257125,1747398646561,-400.0,0.00016438,2]
[361257127,1747398646571,-400.0,0.00016438,2]
[361257129,1747398646580,-400.0,0.00016438,2]
[361257131,1747398646589,-400.0,0.00016438,2]
[361257133,1747398646599,-400.0,0.00016438,2]
[361257135,1747398646608,-500.0,0.00016438,2]
[361257137,1747398646617,-500.0,0.00016438,2]
[361257139,1747398646627,-500.0,0.00016438,2]
[361257140,1747398646636,-647.18698478,0.00016438,2]
[361257141,1747398646645,-584.78,0.00016438,2]
[361257143,1747398646654,-400.0,0.00016438,2]
[361257145,1747398646664,-400.0,0.00016438,2]
[361257147,1747398646673,-416.49,0.00016438,2]
[361257149,1747398646682,-400.0,0.00016438,2]
[361257151,1747398646691,-989.73,0.00016438,2]
[361257153,1747398646700,-400.0,0.00016438,2]
[361257154,1747398646710,-400.0,0.00016438,2]
[361257156,1747398646719,-400.0,0.00016438,2]
[361257158,1747398646728,-151.0,0.00016438,2]
[361257160,1747398646738,-408.93748186,0.00016438,2]
[361257162,1747398646746,-151.0,0.00016438,2]
[361257164,1747398646756,-151.0,0.00016438,2]
[361257165,1747398646765,-400.0,0.00016438,2]
[361257166,1747398646775,-400.0,0.00016438,2]
[361257167,1747398646783,-400.0,0.00016438,2]
[361257168,1747398646792,-400.0,0.00016438,2]
[361257169,1747398646802,-400.0,0.00016438,2]
[361257170,1747398646811,-400.0,0.00016438,2]
[361257171,1747398646820,-400.0,0.00016438,2]
[361257172,1747398646829,-151.0,0.00016438,2]
[361257173,1747398646838,-400.0,0.00016438,2]
[361257174,1747398646847,-151.0,0.00016438,2]
[361257175,1747398646857,-151.0,0.00016438,2]
[361257176,1747398646866,-400.0,0.00016438,2]
[361257177,1747398646875,-400.0,0.00016438,2]
[361257178,1747398646884,-541.94,0.00016438,2]
[361257185,1747398647252,-862.05,0.00016438,2]
[361257186,1747398647262,-403.05817408,0.00016438,2]
[361257187,1747398647272,-400.0,0.00016438,2]
[361257188,1747398647282,-400.0,0.00016438,2]
[361257189,1747398647291,-400.0,0.00016438,2]
[361257190,1747398647301,-400.0,0.00016438,2]
[361257191,1747398647311,-400.0,0.00016438,2]
[361257192,1747398647320,-400.0,0.00016438,2]
[361257193,1747398647330,-400.0,0.00016438,2]
[361257194,1747398647340,-400.0,0.00016438,2]
[361257195,1747398647350,-400.0,0.00016438,2]
[361257196,1747398647360,-400.0,0.00016438,2]
[361257197,1747398647370,-1008.56,0.00016438,2]
[361257198,1747398647380,-1410.55,0.00016438,2]
[361257199,1747398647389,-1646.5,0.00016438,2]
[361257200,1747398647399,-400.0,0.00016438,2]
[361257201,1747398647409,-151.0,0.00016438,2]
[361257202,1747398647418,-151.0,0.00016438,2]
[361257203,1747398647428,-400.0,0.00016438,2]
[361257204,1747398647437,-151.0,0.00016438,2]
[361257205,1747398647447,-400.0,0.00016438,2]
[361257206,1747398647459,-1439.11,0.00016438,2]
[361257207,1747398647468,-905.89,0.00016438,2]
[361257208,1747398647478,-400.0,0.00016438,2]
[361257209,1747398647488,-304.53270755,0.00016438,2]
[361257210,1747398647498,-400.0,0.00016438,2]
[361257211,1747398647508,-400.0,0.00016438,2]
[361257212,1747398647517,-698.38,0.00016438,2]
[361257213,1747398647528,-400.0,0.00016438,2]
[361257214,1747398647539,-400.0,0.00016438,2]
[361257215,1747398647549,-400.0,0.00016438,2]
[361257216,1747398647558,-1178.27,0.00016438,2]
[361257217,1747398647567,-400.0,0.00016438,2]
[361257218,1747398647576,-781.04,0.00016438,2]
[361257219,1747398647585,-400.0,0.00016438,2]
[361257220,1747398647595,-400.0,0.00016438,2]
[361257221,1747398647604,-585.95,0.00016438,2]
[361257222,1747398647614,-400.0,0.00016438,2]
[361257223,1747398647624,-400.0,0.00016438,2]
[361257224,1747398647633,-1370.05,0.00016438,2]
[361257225,1747398647643,-151.0,0.00016438,2]
[361257226,1747398647652,-400.0,0.00016438,2]
[361257227,1747398647662,-151.0,0.00016438,2]
[361257228,1747398647672,-151.0,0.00016438,2]
[361257229,1747398647686,-151.0,0.00016438,2]
[361257230,1747398647695,-400.0,0.00016438,2]
[361257231,1747398647705,-400.0,0.00016438,2]
[361257232,1747398647715,-400.0,0.00016438,2]
[361257233,1747398647724,-151.0,0.00016438,2]
[361257234,1747398647733,-400.0,0.00016438,2]
[361257235,1747398647743,-315.90679481,0.00016438,2]
[361257236,1747398647753,-636.24,0.00016438,2]
[361257237,1747398647763,-522.36,0.00016438,2]
[361257238,1747398647772,-400.0,0.00016438,2]
[361257239,1747398647781,-400.0,0.00016438,2]
[361257240,1747398647790,-400.0,0.00016438,2]
[361257241,1747398647800,-150.0,0.00016438,2]
[361257242,1747398647810,-400.0,0.00016438,2]
[361257243,1747398647820,-400.0,0.00016438,2]
[361257244,1747398647829,-778.46,0.00016438,2]
[361257245,1747398647839,-400.0,0.00016438,2]
[361257246,1747398647848,-593.64,0.00016438,2]
[361257247,1747398647858,-400.0,0.00016438,2]
[361257248,1747398647867,-400.0,0.00016438,2]
[361257249,1747398647877,-400.0,0.00016438,2]
[361257250,1747398647887,-400.0,0.00016438,2]
[361257251,1747398647896,-1455.29,0.00016438,2]
[361257252,1747398647905,-575.17,0.00016438,2]
[361257253,1747398647915,-400.0,0.00016438,2]
[361257254,1747398647924,-1064.84,0.00016438,2]
[361257255,1747398647934,-400.0,0.00016438,2]
[361257256,1747398647944,-1012.35,0.00016438,2]
[361257257,1747398647954,-339.6858797,0.00016438,2]
[361257258,1747398647964,-400.0,0.00016438,2]
[361257259,1747398647975,-509.01,0.00016438,2]
[361257260,1747398647987,-400.0,0.00016438,2]
[361257261,1747398647997,-657.36,0.00016438,2]
[361257262,1747398648006,-1827.74,0.00016438,2]
[361257263,1747398648016,-400.0,0.00016438,2]
[361257264,1747398648025,-483.45,0.00016438,2]
[361257265,1747398648034,-432.29,0.00016438,2]
[361257266,1747398648044,-586.46,0.00016438,2]
[361257267,1747398648053,-507.10117594,0.00016438,2]
[361257268,1747398648063,-400.0,0.00016438,2]
[361257269,1747398648074,-400.0,0.00016438,2]
[361257270,1747398648083,-567.09,0.00016438,2]
[361257271,1747398648093,-628.59,0.00016438,2]
[361257272,1747398648103,-540.87,0.00016438,2]
[361257273,1747398648113,-561.78,0.00016438,2]
[361257274,1747398648123,-400.0,0.00016438,2]
[361257275,1747398648134,-151.0,0.00016438,2]
[361257276,1747398648144,-832.99,0.00016438,2]
[361257277,1747398648154,-400.0,0.00016438,2]
[361257278,1747398648163,-400.0,0.00016438,2]
[361257279,1747398648174,-400.09,0.00016438,2]
[361257280,1747398648183,-225.444672,0.00016438,2]
[361257281,1747398648193,-400.0,0.00016438,2]
[361257282,1747398648202,-400.0,0.00016438,2]
[361257283,1747398648211,-400.0,0.00016438,2]
[361257284,1747398648221,-400.0,0.00016438,2]
[361257285,1747398648230,-400.0,0.00016438,2]
[361257286,1747398648240,-1000.0,0.00016438,2]
[361257287,1747398648250,-624.22,0.00016438,2]
[361257288,1747398648259,-741.22,0.00016438,2]
[361257289,1747398648269,-400.0,0.00016438,2]
[361257290,1747398648279,-1038.07,0.00016438,2]
[361257291,1747398648290,-179.62005072,0.00016438,2]
[361257292,1747398648299,-400.0,0.00016438,2]
[361257293,1747398648309,-400.0,0.00016438,2]
[361257294,1747398648319,-400.0,0.00016438,2]
[361257295,1747398648329,-400.0,0.00016438,2]
[361257296,1747398648338,-400.0,0.00016438,2]
[361257297,1747398648348,-423.64,0.00016438,2]
[361257298,1747398648358,-400.0,0.00016438,2]
[361257299,1747398648368,-400.0,0.00016438,2]
[361257300,1747398648378,-558.4,0.00016438,2]
[361257301,1747398648387,-1427.69,0.00016438,2]
[361257302,1747398648397,-400.0,0.00016438,2]
[361257303,1747398648406,-400.0,0.00016438,2]
[361257304,1747398648416,-343.40773295,0.00016438,2]
[361257305,1747398648425,-400.0,0.00016438,2]
[361257306,1747398648435,-400.0,0.00016438,2]
[361257307,1747398648444,-400.0,0.00016438,2]
[361257308,1747398648455,-291.30723027,0.00016438,2]
[361257309,1747398648467,-856.33,0.00016438,2]
[361257310,1747398648477,-400.0,0.00016438,2]
[361257311,1747398648486,-400.0,0.00016438,2]
[361257312,1747398648496,-400.0,0.00016438,2]
[361257313,1747398648507,-400.0,0.00016438,2]
[361257314,1747398648517,-400.0,0.00016438,2]
[361257315,1747398648527,-400.0,0.00016438,2]
[361257316,1747398648537,-248.78296993,0.00016438,2]
[361257317,1747398648548,-400.0,0.00016438,2]
[361257318,1747398648558,-576.77,0.00016438,2]
[361257319,1747398648569,-704.29,0.00016438,2]
[361257320,1747398648579,-589.71,0.00016438,2]
[361257321,1747398648589,-400.0,0.00016438,2]
[361257322,1747398648598,-400.0,0.00016438,2]
[361257323,1747398648608,-400.0,0.00016438,2]
[361257324,1747398648618,-400.0,0.00016438,2]
[361257325,1747398648627,-764.89,0.00016438,2]
[361257326,1747398648637,-400.0,0.00016438,2]
[361257327,1747398648647,-400.0,0.00016438,2]
[361257328,1747398648656,-619.58,0.00016438,2]
[361257329,1747398648666,-469.9,0.00016438,2]
[361257330,1747398648676,-400.0,0.00016438,2]
[361257331,1747398648686,-400.0,0.00016438,2]
[361257332,1747398648696,-151.0,0.00016438,2]
[361257333,1747398648705,-400.0,0.00016438,2]
[361257334,1747398648715,-400.0,0.00016438,2]
[361257335,1747398648725,-151.0,0.00016438,2]
[361257336,1747398648735,-151.0,0.00016438,2]
[361257337,1747398648744,-400.0,0.00016438,2]
[361257338,1747398648753,-400.0,0.00016438,2]
[361257339,1747398648762,-658.48,0.00016438,2]
[361257340,1747398648772,-400.0,0.00016438,2]
[361257341,1747398648781,-400.0,0.00016438,2]
[361257342,1747398648791,-400.0,0.00016438,2]
[361257343,1747398648801,-570.53,0.00016438,2]
[361257344,1747398648811,-1547.95,0.00016438,2]
[361257345,1747398648821,-619.78,0.00016438,2]
[361257346,1747398648834,-400.0,0.00016438,2]
[361257347,1747398648844,-442.43,0.00016438,2]
[361257348,1747398648853,-689.53,0.00016438,2]
[361257349,1747398648863,-380.0,0.00016438,2]
[361257350,1747398648872,-548.72,0.00016438,2]
[361257351,1747398648881,-400.0,0.00016438,2]
[361257352,1747398648891,-400.0,0.00016438,2]
[361257353,1747398648900,-400.0,0.00016438,2]
[361257354,1747398648910,-400.0,0.00016438,2]
[361257355,1747398648919,-829.79,0.00016438,2]
[361257356,1747398648929,-951.88,0.00016438,2]
[361257357,1747398648938,-400.0,0.00016438,2]
[361257358,1747398648948,-400.0,0.00016438,2]
[361257359,1747398648957,-400.0,0.00016438,2]
[361257360,1747398648967,-1148.77,0.00016438,2]
[361257361,1747398648976,-400.0,0.00016438,2]
[361257362,1747398648985,-400.0,0.00016438,2]
[361257363,1747398648995,-485.05,0.00016438,2]
[361257364,1747398649004,-400.0,0.00016438,2]
[361257365,1747398649013,-461.89,0.00016438,2]
[361257366,1747398649022,-400.0,0.00016438,2]
[361257367,1747398649031,-1566.71,0.00016438,2]
[361257368,1747398649041,-512.04,0.00016438,2]
[361257369,1747398649050,-400.0,0.00016438,2]
[361257370,1747398649060,-400.0,0.00016438,2]
[361257371,1747398649070,-1001.5,0.00016438,2]
[361257372,1747398649080,-400.0,0.00016438,2]
[361257373,1747398649090,-400.0,0.00016438,2]
[361257374,1747398649099,-400.0,0.00016438,2]
[361257375,1747398649110,-503.76,0.00016438,2]
[361257376,1747398649120,-400.0,0.00016438,2]
[361257377,1747398649129,-459.22,0.00016438,2]
[361257378,1747398649139,-400.0,0.00016438,2]
[361257379,1747398649149,-250.67558587,0.00016438,2]
[361257380,1747398649159,-400.0,0.00016438,2]
[361257381,1747398649169,-400.0,0.00016438,2]
[361257382,1747398649178,-400.0,0.00016438,2]
[361257383,1747398649188,-635.72,0.00016438,2]
[361257384,1747398649198,-1705.5,0.00016438,2]
[361257385,1747398649207,-300.0,0.00016438,2]
[361257386,1747398649216,-430.64,0.00016438,2]
[361257387,1747398649226,-204.175928,0.00016438,2]
[361257388,1747398649236,-400.0,0.00016438,2]
[361257389,1747398649245,-2105.56,0.00016438,2]
[361257390,1747398649255,-400.0,0.00016438,2]
[361257391,1747398649264,-727.7,0.00016438,2]
[361257392,1747398649274,-400.0,0.00016438,2]
[361257393,1747398649283,-2200.89,0.00016438,2]
[361257394,1747398649293,-400.0,0.00016438,2]
[361257395,1747398649303,-400.0,0.00016438,2]
[361257396,1747398649312,-401.13983671,0.00016438,2]
[361257397,1747398649322,-1737.49,0.00016438,2]
[361257398,1747398649332,-400.0,0.00016438,2]
[361257399,1747398649341,-1347.11,0.00016438,2]
[361257400,1747398649351,-916.27,0.00016438,2]
[361257401,1747398649361,-274.726533,0.00016438,2]
[361257402,1747398649371,-400.0,0.00016438,2]
[361257403,1747398649380,-400.0,0.00016438,2]
[361257404,1747398649390,-400.0,0.00016438,2]
[361257405,1747398649399,-402.45793042,0.00016438,2]
[361257406,1747398649408,-400.0,0.00016438,2]
[361257407,1747398649418,-400.0,0.00016438,2]
[361257408,1747398649427,-400.0,0.00016438,2]
[361257409,1747398649437,-400.0,0.00016438,2]
[361257410,1747398649446,-409.19,0.00016438,2]
[361257411,1747398649459,-1053.86,0.00016438,2]
[361257412,1747398649469,-897.18,0.00016438,2]
[361257413,1747398649479,-206.73276017,0.00016438,2]
[361257414,1747398649491,-2161.27,0.00016438,2]
[361257415,1747398649500,-400.0,0.00016438,2]
[361257416,1747398649510,-400.0,0.00016438,2]
[361257417,1747398649519,-400.0,0.00016438,2]
[361257418,1747398649529,-666.43,0.00016438,2]
[361257419,1747398649539,-400.0,0.00016438,2]
[361257420,1747398649549,-541.59773264,0.00016438,2]
[361257421,1747398649558,-400.0,0.00016438,2]
[361257422,1747398649568,-400.0,0.00016438,2]
[361257423,1747398649582,-685.74,0.00016438,2]
[361257424,1747398649592,-1353.13,0.00016438,2]
[361257425,1747398649601,-400.0,0.00016438,2]
[361257426,1747398649610,-982.16,0.00016438,2]
[361257427,1747398649619,-275.362808,0.00016438,2]
[361257428,1747398649628,-477.92,0.00016438,2]
[361257429,1747398649637,-400.0,0.00016438,2]
[361257430,1747398649646,-400.0,0.00016438,2]
[361257431,1747398649656,-514.27,0.00016438,2]
[361257432,1747398649665,-1169.49,0.00016438,2]
[361257433,1747398649675,-400.0,0.00016438,2]
[361257434,1747398649685,-400.0,0.00016438,2]
[361257435,1747398649694,-1430.44,0.00016438,2]
[361257436,1747398649703,-400.0,0.00016438,2]
[361257437,1747398649712,-400.0,0.00016438,2]
[361257438,1747398649721,-450.51,0.00016438,2]
[361257439,1747398649730,-2142.85,0.00016438,2]
[361257440,1747398649739,-400.0,0.00016438,2]
[361257441,1747398649749,-400.0,0.00016438,2]
[361257442,1747398649758,-400.0,0.00016438,2]
[361257443,1747398649768,-400.0,0.00016438,2]
[361257444,1747398649779,-276.09372345,0.00016438,2]
[361257445,1747398649789,-400.0,0.00016438,2]
[361257446,1747398649799,-406.62,0.00016438,2]
[361257447,1747398649810,-400.0,0.00016438,2]
[361257448,1747398649820,-400.0,0.00016438,2]
[361257449,1747398649829,-400.0,0.00016438,2]
[361257450,1747398649840,-400.0,0.00016438,2]
[361257451,1747398649850,-460.03,0.00016438,2]
[361257452,1747398649859,-400.0,0.00016438,2]
[361257453,1747398649871,-400.0,0.00016438,2]
[361257454,1747398649880,-400.0,0.00016438,2]
[361257455,1747398649890,-1250.66,0.00016438,2]
[361257456,1747398649899,-400.0,0.00016438,2]
[361257457,1747398649908,-592.89,0.00016438,2]
[361257458,1747398649917,-765.19,0.00016438,2]
[361257459,1747398649926,-400.0,0.00016438,2]
[361257460,1747398649935,-613.93,0.00016438,2]
[361257461,1747398649945,-400.0,0.00016438,2]
[361257462,1747398649954,-651.27,0.00016438,2]
[361257463,1747398649964,-400.0,0.00016438,2]
[361257464,1747398649975,-400.0,0.00016438,2]
[361257465,1747398649985,-157.09438294,0.00016438,2]
[361257466,1747398649995,-400.0,0.00016438,2]
[361257467,1747398650005,-714.78,0.00016438,2]
[361257468,1747398650015,-400.0,0.00016438,2]
[361257469,1747398650024,-400.0,0.00016438,2]
[361257470,1747398650034,-400.0,0.00016438,2]
[361257471,1747398650043,-466.88,0.00016438,2]
[361257472,1747398650052,-400.0,0.00016438,2]
[361257473,1747398650062,-436.48,0.00016438,2]
[361257474,1747398650071,-1913.93,0.00016438,2]
[361257475,1747398650081,-445.59,0.00016438,2]
[361257476,1747398650090,-400.0,0.00016438,2]
[361257477,1747398650100,-400.0,0.00016438,2]
[361257478,1747398650110,-563.9,0.00016438,2]
[361257479,1747398650120,-400.0,0.00016438,2]
[361257480,1747398650130,-263.763131,0.00016438,2]
[361257481,1747398650140,-2000.0,0.00016438,2]
[361257482,1747398650149,-400.0,0.00016438,2]
[361257483,1747398650159,-400.0,0.00016438,2]
[361257484,1747398650168,-400.0,0.00016438,2]
[361257485,1747398650177,-944.99,0.00016438,2]
[361257486,1747398650187,-1026.78,0.00016438,2]
[361257487,1747398650196,-543.14,0.00016438,2]
[361257488,1747398650205,-400.0,0.00016438,2]
[361257489,1747398650215,-400.0,0.00016438,2]
[361257490,1747398650224,-400.0,0.00016438,2]
[361257491,1747398650235,-400.0,0.00016438,2]
[361257492,1747398650244,-688.63,0.00016438,2]
[361257493,1747398650254,-400.0,0.00016438,2]
[361257494,1747398650263,-400.0,0.00016438,2]
[361257495,1747398650273,-400.0,0.00016438,2]
[361257496,1747398650282,-400.0,0.00016438,2]
[361257497,1747398650292,-467.98,0.00016438,2]
[361257498,1747398650301,-400.0,0.00016438,2]
[361257499,1747398650310,-505.72,0.00016438,2]
[361257500,1747398650320,-400.0,0.00016438,2]
[361257501,1747398650330,-400.0,0.00016438,2]
[361257502,1747398650339,-400.0,0.00016438,2]
[361257503,1747398650348,-1263.55,0.00016438,2]
[361257504,1747398650364,-456.79,0.00016438,2]
[361257505,1747398650378,-151.0,0.00016438,2]
[361257506,1747398650391,-400.0,0.00016438,2]
[361257507,1747398650402,-151.0,0.00016438,2]
[361257508,1747398650416,-679.7799966,0.00016438,2]
[361257509,1747398650428,-151.0,0.00016438,2]
[361257510,1747398650442,-400.0,0.00016438,2]
[361257511,1747398650458,-151.0,0.00016438,2]
[361257512,1747398650471,-151.0,0.00016438,2]
[361257513,1747398650485,-400.0,0.00016438,2]
[361257514,1747398650499,-246.172064,0.00016438,2]
[361257515,1747398650510,-400.0,0.00016438,2]
[361257516,1747398650522,-151.0,0.00016438,2]
[361257517,1747398650538,-151.0,0.00016438,2]
[361257518,1747398650552,-159.856235,0.00016438,2]
[361257519,1747398650566,-584.41,0.00016438,2]
[361257520,1747398650579,-400.0,0.00016438,2]
[361257521,1747398650593,-151.0,0.00016438,2]
[361257522,1747398650607,-400.0,0.00016438,2]
[361257523,1747398650620,-295.564663,0.00016438,2]
[361257524,1747398650635,-400.0,0.00016438,2]
[361257525,1747398650648,-794.77,0.00016438,2]
[361257526,1747398650661,-151.0,0.00016438,2]
[361257527,1747398650674,-151.0,0.00016438,2]
[361257528,1747398650687,-400.0,0.00016438,2]
[361257529,1747398650702,-400.0,0.00016438,2]
[361257530,1747398650716,-151.0,0.00016438,2]
[361257531,1747398650728,-400.0,0.00016438,2]
[361257532,1747398650740,-151.0,0.00016438,2]
[361257533,1747398650753,-400.0,0.00016438,2]
[361257534,1747398650764,-400.0,0.00016438,2]
[361257535,1747398650776,-265.59484201,0.00016438,2]
[361257536,1747398650793,-1227.38,0.00016438,2]
[361257537,1747398650808,-400.0,0.00016438,2]
[361257538,1747398650820,-281.092764,0.00016438,2]
[361257539,1747398650830,-151.0,0.00016438,2]
[361257540,1747398650841,-151.0,0.00016438,2]
[361257541,1747398650855,-400.0,0.00016438,2]
[361257542,1747398650868,-151.0,0.00016438,2]
[361257543,1747398650880,-400.0,0.00016438,2]
[361257544,1747398650890,-151.460114,0.00016438,2]
[361257545,1747398650902,-400.0,0.00016438,2]
[361257546,1747398650914,-400.0,0.00016438,2]
[361257547,1747398650926,-1547.24,0.00016438,2]
[361257548,1747398650937,-400.0,0.00016438,2]
[361257549,1747398650948,-432.39,0.00016438,2]
[361257550,1747398650960,-400.0,0.00016438,2]
[361257551,1747398650972,-581.19,0.00016438,2]
[361257552,1747398650983,-400.0,0.00016438,2]
[361257553,1747398650995,-400.0,0.00016438,2]
[361257554,1747398651007,-228.408327,0.00016438,2]
[361257555,1747398651019,-462.0,0.00016438,2]
[361257556,1747398651031,-1019.48,0.00016438,2]
[361257557,1747398651042,-1222.11,0.00016438,2]
[361257558,1747398651054,-400.0,0.00016438,2]
[361257559,1747398651067,-400.0,0.00016438,2]
[361257560,1747398651079,-400.0,0.00016438,2]
[361257561,1747398651091,-911.02,0.00016438,2]
[361257562,1747398651104,-400.0,0.00016438,2]
[361257563,1747398651116,-1111.73,0.00016438,2]
[361257564,1747398651135,-400.0,0.00016438,2]
[361257565,1747398651147,-505.75414834,0.00016438,2]
[361257566,1747398651159,-533.85,0.00016438,2]
[361257567,1747398651171,-400.0,0.00016438,2]
[361257568,1747398651182,-400.0,0.00016438,2]
[361257569,1747398651194,-795.85,0.00016438,2]
[361257570,1747398651205,-400.0,0.00016438,2]
[361257571,1747398651217,-301.95563798,0.00016438,2]
[361257572,1747398651228,-400.0,0.00016438,2]
[361257573,1747398651240,-1178.6,0.00016438,2]
[361257574,1747398651252,-499.93,0.00016438,2]
[361257575,1747398651263,-502.63,0.00016438,2]
[361257576,1747398651275,-400.0,0.00016438,2]
[361257577,1747398651287,-576.34,0.00016438,2]
[361257578,1747398651299,-213.354904,0.00016438,2]
[361257579,1747398651313,-400.0,0.00016438,2]
[361257580,1747398651326,-455.0,0.00016438,2]
[361257581,1747398651338,-400.0,0.00016438,2]
[361257582,1747398651350,-1151.17,0.00016438,2]
[361257583,1747398651361,-523.48,0.00016438,2]
[361257584,1747398651373,-513.03,0.00016438,2]
[361257585,1747398651385,-408.45,0.00016438,2]
[361257586,1747398651397,-479.08,0.00016438,2]
[361257587,1747398651408,-400.0,0.00016438,2]
[361257588,1747398651419,-400.0,0.00016438,2]
[361257589,1747398651431,-400.0,0.00016438,2]
[361257590,1747398651442,-998.47,0.00016438,2]
[361257591,1747398651457,-902.32,0.00016438,2]
[361257592,1747398651469,-400.0,0.00016438,2]
[361257593,1747398651480,-931.34,0.00016438,2]
[361257594,1747398651491,-201.772787,0.00016438,2]
[361257595,1747398651504,-739.09,0.00016438,2]
[361257596,1747398651516,-400.0,0.00016438,2]
[361257597,1747398651528,-400.0,0.00016438,2]
[361257598,1747398651539,-400.0,0.00016438,2]
[361257599,1747398651551,-481.59,0.00016438,2]
[361257600,1747398651562,-404.76,0.00016438,2]
[361257601,1747398651574,-1677.0,0.00016438,2]
[361257602,1747398651585,-400.0,0.00016438,2]
[361257603,1747398651596,-400.0,0.00016438,2]
[361257604,1747398651608,-759.23,0.00016438,2]
[361257605,1747398651620,-489.24,0.00016438,2]
[361257606,1747398651630,-170.97889715,0.00016438,2]
[361257607,1747398651642,-400.0,0.00016438,2]
[361257608,1747398651653,-170.47206463,0.00016438,2]
[361257609,1747398651664,-409.16,0.00016438,2]
[361257610,1747398651675,-400.0,0.00016438,2]
[361257611,1747398651687,-400.0,0.00016438,2]
[361257612,1747398651698,-766.26,0.00016438,2]